[Event "Live Chess"]
[Site "Chess.com"]
[Date "2024.06.02"]
[Round "-"]
[White "RichardABates"]
[Black "JanMur7"]
[Result "1-0"]
[WhiteElo "2369"]
[BlackElo "2252"]
[TimeControl "300"]
[EndTime "0:35:36 PDT"]
[Termination "RichardABates won by resignation"]

1. d4 {[%clk 0:04:59.1]} 1... Nf6 {[%clk 0:04:58.9]} 2. Nf3 {[%clk 0:04:56.7]}
2... d5 {[%clk 0:04:57.8]} 3. c4 {[%clk 0:04:55.2]} 3... e6 {[%clk 0:04:56.7]}
4. g3 {[%clk 0:04:53.6]} 4... dxc4 {[%clk 0:04:55.2]} 5. Bg2 {[%clk 0:04:51.9]}
5... Bb4+ {[%clk 0:04:54.5]} 6. Bd2 {[%clk 0:04:49.9]} 6... c5 {[%clk
0:04:53.8]} 7. O-O {[%clk 0:04:48.1]} 7... Bxd2 {[%clk 0:04:49.7]} 8. Nbxd2
{[%clk 0:04:45.6]} 8... cxd4 {[%clk 0:04:46.4]} 9. Nxc4 {[%clk 0:04:44.1]} 9...
Nc6 {[%clk 0:04:46]} 10. a3 {[%clk 0:04:33.9]} 10... O-O {[%clk 0:04:43.3]} 11.
b4 {[%clk 0:04:32.6]} 11... a6 {[%clk 0:04:42.2]} 12. Qd3 {[%clk 0:04:24.4]}
12... Rb8 {[%clk 0:04:33.4]} 13. Rfd1 {[%clk 0:04:20.7]} 13... b5 {[%clk
0:04:26]} 14. Nce5 {[%clk 0:04:19.4]} 14... Nxe5 {[%clk 0:04:19.7]} 15. Nxe5
{[%clk 0:04:17.9]} 15... Bb7 {[%clk 0:04:09.3]} 16. Qxd4 {[%clk 0:04:13.8]}
16... Qxd4 {[%clk 0:04:04.8]} 17. Rxd4 {[%clk 0:04:12]} 17... Bxg2 {[%clk
0:04:03.8]} 18. Kxg2 {[%clk 0:04:10.2]} 18... Nd5 {[%clk 0:04:03.1]} 19. e4
{[%clk 0:04:03.7]} 19... Nb6 {[%clk 0:03:56.1]} 20. Nc6 {[%clk 0:04:00.2]} 20...
Rb7 {[%clk 0:03:45.7]} 21. Rad1 {[%clk 0:03:57.9]} 21... h5 {[%clk 0:03:42.8]}
22. Rd8 {[%clk 0:03:54.3]} 22... g6 {[%clk 0:03:39.9]} 23. Na5 {[%clk
0:03:47.4]} 23... Rc7 {[%clk 0:03:33.5]} 24. Rxf8+ {[%clk 0:03:43.6]} 24... Kxf8
{[%clk 0:03:32.5]} 25. Rd6 {[%clk 0:03:42]} 25... Nc4 {[%clk 0:03:31.4]} 26.
Rxa6 {[%clk 0:03:38.3]} 26... Nxa3 {[%clk 0:03:28.4]} 27. Rb6 {[%clk 0:03:36.1]}
27... Rc2 {[%clk 0:03:07]} 28. Nc6 {[%clk 0:03:26.1]} 28... Rc4 {[%clk 0:02:59]}
29. f3 {[%clk 0:03:08.9]} 29... Rc2+ {[%clk 0:02:51.1]} 30. Kh3 {[%clk
0:03:05.9]} 30... Rf2 {[%clk 0:02:32.6]} 31. Ne5 {[%clk 0:03:03.1]} 31... f6
{[%clk 0:02:19]} 32. Nxg6+ {[%clk 0:02:59.5]} 32... Kf7 {[%clk 0:02:13]} 33. Nf4
{[%clk 0:02:58.1]} 33... Rxf3 {[%clk 0:02:01.9]} 34. Rb7+ {[%clk 0:02:55.8]}
34... Ke8 {[%clk 0:01:58]} 35. Nxe6 {[%clk 0:02:52.6]} 35... Rb3 {[%clk
0:01:53.6]} 36. Ng7+ {[%clk 0:02:51]} 36... Kf8 {[%clk 0:01:51.8]} 37. Nxh5
{[%clk 0:02:49.6]} 37... Rxb4 {[%clk 0:01:50.3]} 38. Nxf6 {[%clk 0:02:48.3]}
38... Nc2 {[%clk 0:01:47.8]} 39. e5 {[%clk 0:02:45.9]} 39... Nd4 {[%clk
0:01:42]} 40. g4 {[%clk 0:02:31.9]} 40... Rb3+ {[%clk 0:01:36.1]} 41. Kg2 {[%clk
0:02:30.6]} 41... Re3 {[%clk 0:01:28.3]} 42. g5 {[%clk 0:02:22.3]} 42... Rxe5
{[%clk 0:01:26.8]} 43. Nd7+ {[%clk 0:02:20.9]} 1-0

[Event "Live Chess"]
[Site "Chess.com"]
[Date "2024.06.02"]
[Round "-"]
[White "Crowded_House"]
[Black "wadsy27"]
[Result "0-1"]
[WhiteElo "1675"]
[BlackElo "2582"]
[TimeControl "300"]
[EndTime "0:36:10 PDT"]
[Termination "wadsy27 won by resignation"]

1. d4 {[%clk 0:04:56.8]} 1... Nf6 {[%clk 0:04:58.9]} 2. Bg5 {[%clk 0:04:53.9]}
2... d5 {[%clk 0:04:57.3]} 3. Nf3 {[%clk 0:04:51]} 3... c6 {[%clk 0:04:54]} 4.
e3 {[%clk 0:04:49.5]} 4... Bf5 {[%clk 0:04:50]} 5. Bd3 {[%clk 0:04:48.3]} 5...
Bxd3 {[%clk 0:04:48.8]} 6. Qxd3 {[%clk 0:04:47.5]} 6... e6 {[%clk 0:04:48.3]} 7.
O-O {[%clk 0:04:45.9]} 7... h6 {[%clk 0:04:46.8]} 8. Bh4 {[%clk 0:04:44]} 8...
Bd6 {[%clk 0:04:46.2]} 9. Bg3 {[%clk 0:04:40.9]} 9... Bxg3 {[%clk 0:04:43]} 10.
hxg3 {[%clk 0:04:39.5]} 10... Nbd7 {[%clk 0:04:42.5]} 11. Nbd2 {[%clk
0:04:37.7]} 11... Qc7 {[%clk 0:04:41.6]} 12. Rfe1 {[%clk 0:04:36.3]} 12... O-O-O
{[%clk 0:04:38.9]} 13. e4 {[%clk 0:04:35.6]} 13... dxe4 {[%clk 0:04:37.7]} 14.
Nxe4 {[%clk 0:04:34.2]} 14... Nxe4 {[%clk 0:04:37.4]} 15. Qxe4 {[%clk
0:04:32.7]} 15... Nf6 {[%clk 0:04:37.1]} 16. Qe5 {[%clk 0:04:22.8]} 16... Rd5
{[%clk 0:04:36.4]} 17. Qxc7+ {[%clk 0:04:18.4]} 17... Kxc7 {[%clk 0:04:36.3]}
18. c3 {[%clk 0:04:17.4]} 18... Nd7 {[%clk 0:04:30.9]} 19. Re4 {[%clk 0:04:10]}
19... g5 {[%clk 0:04:29.2]} 20. Rae1 {[%clk 0:04:06.2]} 20... b5 {[%clk
0:04:27.4]} 21. Ne5 {[%clk 0:03:59.8]} 21... Nxe5 {[%clk 0:04:26.3]} 22. Rxe5
{[%clk 0:03:57.2]} 22... Kd6 {[%clk 0:04:25.1]} 23. Rxd5+ {[%clk 0:03:55.2]}
23... cxd5 {[%clk 0:04:24.4]} 24. a3 {[%clk 0:03:47.8]} 24... a5 {[%clk
0:04:22.8]} 25. Re3 {[%clk 0:03:45.8]} 25... Rb8 {[%clk 0:04:21.2]} 26. Rf3
{[%clk 0:03:43.6]} 26... f5 {[%clk 0:04:19.5]} 27. b4 {[%clk 0:03:36.9]} 27...
axb4 {[%clk 0:04:14.7]} 28. cxb4 {[%clk 0:03:31.9]} 28... Rc8 {[%clk 0:04:13.9]}
29. Rd3 {[%clk 0:03:23.5]} 29... Rc1+ {[%clk 0:04:12.5]} 30. Kh2 {[%clk
0:03:21.3]} 30... Rc2 {[%clk 0:04:12.1]} 31. f3 {[%clk 0:03:18.7]} 31... h5
{[%clk 0:04:11.3]} 32. g4 {[%clk 0:03:11.9]} 32... hxg4 {[%clk 0:04:05.1]} 33.
fxg4 {[%clk 0:03:10.7]} 33... f4 {[%clk 0:04:04.8]} 34. Kh3 {[%clk 0:03:06.4]}
34... e5 {[%clk 0:04:04.1]} 35. dxe5+ {[%clk 0:03:01.7]} 35... Kxe5 {[%clk
0:04:04]} 36. g3 {[%clk 0:02:51.3]} 36... Ke4 {[%clk 0:04:02.5]} 37. Rb3 {[%clk
0:02:48.6]} 37... fxg3 {[%clk 0:03:55.2]} 38. Kxg3 {[%clk 0:02:46.9]} 38... d4
{[%clk 0:03:53.6]} 39. Rf3 {[%clk 0:02:31.3]} 39... Rc3 {[%clk 0:03:52.3]} 40.
Rxc3 {[%clk 0:02:27.4]} 40... dxc3 {[%clk 0:03:51.4]} 0-1

[Event "Live Chess"]
[Site "Chess.com"]
[Date "2024.06.02"]
[Round "-"]
[White "McFim"]
[Black "Duke_of_Bebington"]
[Result "1-0"]
[WhiteElo "1708"]
[BlackElo "1688"]
[TimeControl "300"]
[EndTime "0:36:17 PDT"]
[Termination "McFim won by checkmate"]

1. e4 {[%clk 0:04:57.5]} 1... e5 {[%clk 0:04:58.9]} 2. Nf3 {[%clk 0:04:55.3]}
2... Nf6 {[%clk 0:04:56.9]} 3. Nxe5 {[%clk 0:04:53.8]} 3... d6 {[%clk
0:04:55.6]} 4. Nf3 {[%clk 0:04:52.4]} 4... Nxe4 {[%clk 0:04:55.1]} 5. d3 {[%clk
0:04:51.1]} 5... Nf6 {[%clk 0:04:53.7]} 6. d4 {[%clk 0:04:50.5]} 6... d5 {[%clk
0:04:52.5]} 7. Bd3 {[%clk 0:04:49.5]} 7... Bd6 {[%clk 0:04:51.6]} 8. O-O {[%clk
0:04:47.8]} 8... O-O {[%clk 0:04:51.1]} 9. c4 {[%clk 0:04:46.2]} 9... c6 {[%clk
0:04:49.6]} 10. cxd5 {[%clk 0:04:44.8]} 10... cxd5 {[%clk 0:04:46.9]} 11. Nc3
{[%clk 0:04:43.7]} 11... Nc6 {[%clk 0:04:38.3]} 12. h3 {[%clk 0:04:42.3]} 12...
Be6 {[%clk 0:04:35.4]} 13. a3 {[%clk 0:04:34.9]} 13... Qb6 {[%clk 0:04:32]} 14.
Bc2 {[%clk 0:04:31.7]} 14... h6 {[%clk 0:04:22.5]} 15. Qd3 {[%clk 0:04:20.2]}
15... g6 {[%clk 0:04:14.1]} 16. Bxh6 {[%clk 0:04:17]} 16... Rfe8 {[%clk
0:04:13.2]} 17. Rab1 {[%clk 0:04:02.7]} 17... Bf5 {[%clk 0:04:10.2]} 18. Qd2
{[%clk 0:03:59.2]} 18... Ne4 {[%clk 0:04:05]} 19. Bxe4 {[%clk 0:03:48.7]} 19...
dxe4 {[%clk 0:04:03.7]} 20. Nh4 {[%clk 0:03:42.3]} 20... Nxd4 {[%clk 0:03:52.1]}
21. Nxf5 {[%clk 0:03:34]} 21... Nxf5 {[%clk 0:03:50.1]} 22. Bg5 {[%clk
0:03:29.5]} 22... Bf8 {[%clk 0:03:20.3]} 23. Nd5 {[%clk 0:03:09.8]} 23... Qd4
{[%clk 0:02:47.9]} 24. Qxd4 {[%clk 0:03:06.5]} 24... Nxd4 {[%clk 0:02:47.8]} 25.
Nf6+ {[%clk 0:03:05.4]} 25... Kg7 {[%clk 0:02:45.9]} 26. Nxe8+ {[%clk
0:03:03.7]} 26... Rxe8 {[%clk 0:02:45.4]} 27. Be3 {[%clk 0:03:00.9]} 27... Nf5
{[%clk 0:02:38.7]} 28. Bd2 {[%clk 0:02:56.3]} 28... Bc5 {[%clk 0:02:35.1]} 29.
Bc3+ {[%clk 0:02:52.6]} 29... Kh6 {[%clk 0:02:33.4]} 30. Rfe1 {[%clk 0:02:41.6]}
30... e3 {[%clk 0:02:30]} 31. fxe3 {[%clk 0:02:38.7]} 31... Bxe3+ {[%clk
0:02:24.4]} 32. Kh2 {[%clk 0:02:37]} 32... Bf4+ {[%clk 0:02:20.5]} 33. Kh1
{[%clk 0:02:32.4]} 33... Ng3+ {[%clk 0:02:18.6]} 34. Kg1 {[%clk 0:02:29.3]}
34... Rd8 {[%clk 0:02:05.5]} 35. Be5 {[%clk 0:02:00.6]} 35... Bxe5 {[%clk
0:01:52.3]} 36. Rxe5 {[%clk 0:01:57.7]} 36... Nf5 {[%clk 0:01:51.5]} 37. Re2
{[%clk 0:01:48.8]} 37... Kg7 {[%clk 0:01:46.3]} 38. Rc1 {[%clk 0:01:40.3]} 38...
Rd7 {[%clk 0:01:40.5]} 39. Rec2 {[%clk 0:01:29.3]} 39... Nd4 {[%clk 0:01:38.7]}
40. Rc7 {[%clk 0:01:17.9]} 40... Rd6 {[%clk 0:01:23.2]} 41. Re1 {[%clk
0:01:04.3]} 41... Rb6 {[%clk 0:01:08.9]} 42. Ree7 {[%clk 0:00:57.9]} 42... Rxb2
{[%clk 0:01:02.7]} 43. Rxf7+ {[%clk 0:00:55.5]} 43... Kh6 {[%clk 0:01:02.3]} 44.
Rh7+ {[%clk 0:00:52.6]} 44... Kg5 {[%clk 0:01:01]} 45. Rxb7 {[%clk 0:00:51.9]}
45... Ne2+ {[%clk 0:00:46.8]} 46. Kh2 {[%clk 0:00:48.7]} 46... Ra2 {[%clk
0:00:44.5]} 47. Rxa7 {[%clk 0:00:45.5]} 47... Nf4 {[%clk 0:00:43.1]} 48. Ra5+
{[%clk 0:00:39.6]} 48... Kf6 {[%clk 0:00:38.1]} 49. Ra6+ {[%clk 0:00:37.8]}
49... Kg5 {[%clk 0:00:37]} 50. h4+ {[%clk 0:00:28.5]} 50... Kf5 {[%clk
0:00:34.8]} 51. Rf7+ {[%clk 0:00:25.9]} 51... Ke5 {[%clk 0:00:32.6]} 52. Rxf4
{[%clk 0:00:24.2]} 52... Kxf4 {[%clk 0:00:31.5]} 53. Rxg6 {[%clk 0:00:23.7]}
53... Rxa3 {[%clk 0:00:29.9]} 54. g3+ {[%clk 0:00:21.6]} 54... Kf5 {[%clk
0:00:27.5]} 55. Rg5+ {[%clk 0:00:19.4]} 55... Kf6 {[%clk 0:00:27.1]} 56. Kh3
{[%clk 0:00:18.4]} 56... Rb3 {[%clk 0:00:24]} 57. Ra5 {[%clk 0:00:17.1]} 57...
Kg6 {[%clk 0:00:22.7]} 58. Ra6+ {[%clk 0:00:14.5]} 58... Kg7 {[%clk 0:00:21]}
59. h5 {[%clk 0:00:13.1]} 59... Kh7 {[%clk 0:00:19.4]} 60. Kh4 {[%clk
0:00:12.2]} 60... Rb4+ {[%clk 0:00:18.4]} 61. g4 {[%clk 0:00:11]} 61... Rb1
{[%clk 0:00:17.1]} 62. Ra7+ {[%clk 0:00:08.8]} 62... Kh6 {[%clk 0:00:15.6]} 63.
g5# {[%clk 0:00:08.1]} 1-0

[Event "Live Chess"]
[Site "Chess.com"]
[Date "2024.06.02"]
[Round "-"]
[White "NAZRIZ1977"]
[Black "f4nomore"]
[Result "1-0"]
[WhiteElo "2127"]
[BlackElo "1252"]
[TimeControl "300"]
[EndTime "0:36:45 PDT"]
[Termination "NAZRIZ1977 won by resignation"]

1. d4 {[%clk 0:04:55.2]} 1... g6 {[%clk 0:04:59.9]} 2. Nc3 {[%clk 0:04:53.8]}
2... Bg7 {[%clk 0:04:58.6]} 3. e4 {[%clk 0:04:53.1]} 3... d6 {[%clk 0:04:57.5]}
4. Nge2 {[%clk 0:04:52.1]} 4... Nf6 {[%clk 0:04:55.4]} 5. f3 {[%clk 0:04:51.3]}
5... O-O {[%clk 0:04:53.5]} 6. Be3 {[%clk 0:04:50.7]} 6... Nbd7 {[%clk
0:04:52.3]} 7. Qd2 {[%clk 0:04:50.2]} 7... c5 {[%clk 0:04:48.2]} 8. O-O-O {[%clk
0:04:49.1]} 8... cxd4 {[%clk 0:04:45.7]} 9. Nxd4 {[%clk 0:04:47.5]} 9... Nb6
{[%clk 0:04:41.6]} 10. Bh6 {[%clk 0:04:46]} 10... e5 {[%clk 0:04:36.4]} 11. Nb3
{[%clk 0:04:43.6]} 11... Nc4 {[%clk 0:04:24.5]} 12. Bxc4 {[%clk 0:04:42]} 12...
Be6 {[%clk 0:04:19.3]} 13. Bxe6 {[%clk 0:04:40]} 13... fxe6 {[%clk 0:04:17.6]}
14. Bxg7 {[%clk 0:04:39.4]} 14... Kxg7 {[%clk 0:04:15.6]} 15. Qxd6 {[%clk
0:04:36.2]} 15... Qxd6 {[%clk 0:04:14.2]} 16. Rxd6 {[%clk 0:04:34.9]} 16... Rfe8
{[%clk 0:04:10.9]} 17. Rhd1 {[%clk 0:04:33.5]} 17... b6 {[%clk 0:04:05.7]} 18.
g4 {[%clk 0:04:30]} 18... a5 {[%clk 0:04:02.8]} 19. a4 {[%clk 0:04:27.3]} 19...
Rab8 {[%clk 0:03:53.7]} 20. g5 {[%clk 0:04:26.1]} 20... Nh5 {[%clk 0:03:50.4]}
21. Rd7+ {[%clk 0:04:24.9]} 21... Kg8 {[%clk 0:03:45.3]} 22. Nb5 {[%clk
0:04:22.8]} 22... Nf4 {[%clk 0:03:36.2]} 23. Rc7 {[%clk 0:04:11.3]} 23... Red8
{[%clk 0:03:24.9]} 24. Rxd8+ {[%clk 0:04:07]} 24... Rxd8 {[%clk 0:03:22.5]} 25.
Nc3 {[%clk 0:04:00.3]} 25... Ng2 {[%clk 0:03:13.6]} 26. Rc6 {[%clk 0:03:55.3]}
26... Ne1 {[%clk 0:03:11.1]} 27. Rxb6 {[%clk 0:03:50.2]} 27... Nxf3 {[%clk
0:03:08.4]} 28. Rxe6 {[%clk 0:03:46.8]} 28... Nxg5 {[%clk 0:03:06.1]} 29. Rxe5
{[%clk 0:03:44.3]} 29... Nf3 {[%clk 0:03:04]} 30. Rxa5 {[%clk 0:03:34.9]} 30...
Nxh2 {[%clk 0:03:02.2]} 31. Rd5 {[%clk 0:03:34]} 31... Re8 {[%clk 0:02:56.2]}
32. a5 {[%clk 0:03:32.5]} 32... Nf1 {[%clk 0:02:50.8]} 33. a6 {[%clk 0:03:29.9]}
33... Ne3 {[%clk 0:02:48.4]} 34. Rd3 {[%clk 0:03:16.9]} 34... Nc4 {[%clk
0:02:41.6]} 35. Nc5 {[%clk 0:03:12.3]} 35... Ra8 {[%clk 0:02:27.6]} 36. b3
{[%clk 0:03:07.9]} 36... Ne5 {[%clk 0:02:22]} 37. Rd5 {[%clk 0:03:04.2]} 37...
Nc6 {[%clk 0:02:09.7]} 38. Rd6 {[%clk 0:03:02.5]} 38... Nb4 {[%clk 0:02:08]} 39.
Nd5 {[%clk 0:02:57.9]} 39... Nxd5 {[%clk 0:01:39.6]} 40. Rxd5 {[%clk 0:02:55.9]}
40... Kf7 {[%clk 0:01:35.4]} 41. b4 {[%clk 0:02:54.6]} 41... g5 {[%clk
0:01:28.5]} 42. Rxg5 {[%clk 0:02:52.7]} 42... Kf6 {[%clk 0:01:26.1]} 43. Rf5+
{[%clk 0:02:50.6]} 43... Kg6 {[%clk 0:01:24.6]} 44. b5 {[%clk 0:02:50]} 44... h5
{[%clk 0:01:23]} 45. Rxh5 {[%clk 0:02:46.3]} 45... Kxh5 {[%clk 0:01:20.8]} 46.
b6 {[%clk 0:02:45.8]} 46... Rf8 {[%clk 0:01:17.2]} 47. b7 {[%clk 0:02:43.9]}
47... Rf1+ {[%clk 0:01:11]} 48. Kb2 {[%clk 0:02:42.7]} 48... Rf8 {[%clk
0:00:59.4]} 49. a7 {[%clk 0:02:40.7]} 49... Kg4 {[%clk 0:00:57.3]} 50. b8=Q
{[%clk 0:02:39.4]} 1-0

[Event "Live Chess"]
[Site "Chess.com"]
[Date "2024.06.02"]
[Round "-"]
[White "silunn"]
[Black "Jadmis_2011"]
[Result "1-0"]
[WhiteElo "2204"]
[BlackElo "1456"]
[TimeControl "300"]
[EndTime "0:37:07 PDT"]
[Termination "silunn won by checkmate"]

1. e4 {[%clk 0:04:57.8]} 1... c6 {[%clk 0:04:58.3]} 2. d4 {[%clk 0:04:56.6]}
2... d5 {[%clk 0:04:57.7]} 3. exd5 {[%clk 0:04:55.9]} 3... cxd5 {[%clk
0:04:56.8]} 4. c4 {[%clk 0:04:54.9]} 4... e6 {[%clk 0:04:55.7]} 5. Nc3 {[%clk
0:04:53.7]} 5... Nf6 {[%clk 0:04:55]} 6. Nf3 {[%clk 0:04:53.2]} 6... Bb4 {[%clk
0:04:54.1]} 7. Be2 {[%clk 0:04:51.5]} 7... Nc6 {[%clk 0:04:52.9]} 8. O-O {[%clk
0:04:49.4]} 8... O-O {[%clk 0:04:51.4]} 9. c5 {[%clk 0:04:46.2]} 9... Bxc3
{[%clk 0:04:45.7]} 10. bxc3 {[%clk 0:04:46.1]} 10... a6 {[%clk 0:04:44]} 11. Bg5
{[%clk 0:04:44]} 11... h6 {[%clk 0:04:41.6]} 12. Bh4 {[%clk 0:04:42.1]} 12...
Re8 {[%clk 0:04:39.8]} 13. Qd2 {[%clk 0:04:37.8]} 13... e5 {[%clk 0:04:25.8]}
14. dxe5 {[%clk 0:04:24.8]} 14... Nxe5 {[%clk 0:04:24.1]} 15. Rfe1 {[%clk
0:04:07.7]} 15... Nxf3+ {[%clk 0:04:05.6]} 16. Bxf3 {[%clk 0:04:07.6]} 16...
Rxe1+ {[%clk 0:04:03.2]} 17. Rxe1 {[%clk 0:04:05.3]} 17... Be6 {[%clk
0:04:02.6]} 18. Re5 {[%clk 0:03:50.9]} 18... Qc7 {[%clk 0:03:47.8]} 19. Bxf6
{[%clk 0:03:36]} 19... gxf6 {[%clk 0:03:45]} 20. Rh5 {[%clk 0:03:34.7]} 20...
Qxc5 {[%clk 0:03:35]} 21. Qxh6 {[%clk 0:03:32.9]} 21... Qxc3 {[%clk 0:03:08.7]}
22. Qh8# {[%clk 0:03:24.3]} 1-0

[Event "Live Chess"]
[Site "Chess.com"]
[Date "2024.06.02"]
[Round "-"]
[White "AndrewBak1"]
[Black "RG_ChessLegend"]
[Result "1-0"]
[WhiteElo "1880"]
[BlackElo "1497"]
[TimeControl "300"]
[EndTime "0:37:24 PDT"]
[Termination "AndrewBak1 won by resignation"]

1. e4 {[%clk 0:04:57.6]} 1... c5 {[%clk 0:04:58.7]} 2. Nf3 {[%clk 0:04:56.7]}
2... d6 {[%clk 0:04:57.8]} 3. d4 {[%clk 0:04:56.6]} 3... cxd4 {[%clk 0:04:57.6]}
4. Nxd4 {[%clk 0:04:55.9]} 4... Nf6 {[%clk 0:04:57.5]} 5. Nc3 {[%clk 0:04:55.1]}
5... a6 {[%clk 0:04:56.8]} 6. Bg5 {[%clk 0:04:54.1]} 6... e6 {[%clk 0:04:55.8]}
7. f4 {[%clk 0:04:53.2]} 7... Be7 {[%clk 0:04:55]} 8. Qf3 {[%clk 0:04:51.9]}
8... Qc7 {[%clk 0:04:54.3]} 9. O-O-O {[%clk 0:04:51.1]} 9... Nc6 {[%clk
0:04:47.2]} 10. g4 {[%clk 0:04:49.4]} 10... h6 {[%clk 0:04:40.9]} 11. Bxf6
{[%clk 0:04:48.4]} 11... Bxf6 {[%clk 0:04:39.7]} 12. Nxc6 {[%clk 0:04:45.3]}
12... bxc6 {[%clk 0:04:37.5]} 13. h4 {[%clk 0:04:39.8]} 13... Bxc3 {[%clk
0:04:32.8]} 14. Qxc3 {[%clk 0:04:38.4]} 14... Rg8 {[%clk 0:04:28.5]} 15. g5
{[%clk 0:04:30.5]} 15... hxg5 {[%clk 0:04:25.2]} 16. hxg5 {[%clk 0:04:28.8]}
16... Bd7 {[%clk 0:04:21.8]} 17. Rh7 {[%clk 0:04:27]} 17... e5 {[%clk
0:04:17.7]} 18. fxe5 {[%clk 0:04:22.3]} 18... dxe5 {[%clk 0:04:17.6]} 19. Rd5
{[%clk 0:04:08.1]} 19... Rd8 {[%clk 0:03:59]} 20. Rxe5+ {[%clk 0:04:03]} 20...
Be6 {[%clk 0:03:57.4]} 21. Bh3 {[%clk 0:03:48.7]} 21... Rd6 {[%clk 0:03:53.1]}
22. Bxe6 {[%clk 0:03:37.8]} 22... Rxe6 {[%clk 0:03:46.8]} 23. Rxe6+ {[%clk
0:03:36.8]} 23... fxe6 {[%clk 0:03:46.7]} 24. Qc4 {[%clk 0:03:20.3]} 24... Qf4+
{[%clk 0:03:43.5]} 25. Kb1 {[%clk 0:03:10.4]} 25... Qxg5 {[%clk 0:03:39.6]} 26.
Qxe6+ {[%clk 0:03:07.3]} 26... Kf8 {[%clk 0:03:34.7]} 27. Rh1 {[%clk 0:03:01.8]}
27... Qb5 {[%clk 0:03:25.1]} 28. c4 {[%clk 0:02:50.4]} 1-0

[Event "Live Chess"]
[Site "Chess.com"]
[Date "2024.06.02"]
[Round "-"]
[White "Greenbecker"]
[Black "NatashaRegan"]
[Result "1/2-1/2"]
[WhiteElo "1776"]
[BlackElo "1720"]
[TimeControl "300"]
[EndTime "0:37:35 PDT"]
[Termination "Game drawn by agreement"]

1. e4 {[%clk 0:04:57.2]} 1... Nf6 {[%clk 0:04:57.8]} 2. e5 {[%clk 0:04:52.7]}
2... Nd5 {[%clk 0:04:56.5]} 3. Nc3 {[%clk 0:04:51.7]} 3... Nxc3 {[%clk
0:04:54.5]} 4. dxc3 {[%clk 0:04:50.7]} 4... d6 {[%clk 0:04:53.9]} 5. exd6 {[%clk
0:04:48.6]} 5... cxd6 {[%clk 0:04:52.4]} 6. Nf3 {[%clk 0:04:48.1]} 6... Nc6
{[%clk 0:04:51.1]} 7. Bd3 {[%clk 0:04:46.8]} 7... Bg4 {[%clk 0:04:49.3]} 8. O-O
{[%clk 0:04:45.2]} 8... g6 {[%clk 0:04:48]} 9. h3 {[%clk 0:04:43.3]} 9... Bxf3
{[%clk 0:04:43.1]} 10. Qxf3 {[%clk 0:04:41.3]} 10... Ne5 {[%clk 0:04:42.1]} 11.
Qxb7 {[%clk 0:04:32.6]} 11... Bg7 {[%clk 0:04:37.9]} 12. Bb5+ {[%clk 0:04:23.8]}
12... Kf8 {[%clk 0:04:33]} 13. a4 {[%clk 0:04:13.2]} 13... h6 {[%clk 0:04:26.3]}
14. f4 {[%clk 0:04:09.5]} 14... Rb8 {[%clk 0:04:10.2]} 15. Qxa7 {[%clk
0:03:40.6]} 15... Ra8 {[%clk 0:04:05.8]} 16. Qf2 {[%clk 0:03:31.2]} 16... Nd7
{[%clk 0:04:02.2]} 17. Bxd7 {[%clk 0:03:23.3]} 17... Qxd7 {[%clk 0:04:01.1]} 18.
f5 {[%clk 0:03:21.3]} 18... g5 {[%clk 0:03:59.5]} 19. Qf3 {[%clk 0:03:06.3]}
19... Rxa4 {[%clk 0:03:52.1]} 20. Rxa4 {[%clk 0:03:01]} 20... Qxa4 {[%clk
0:03:50.4]} 21. Qd3 {[%clk 0:02:30.5]} 21... Bf6 {[%clk 0:03:46.4]} 22. Be3
{[%clk 0:02:20.7]} 22... Kg7 {[%clk 0:03:44]} 23. Bd4 {[%clk 0:02:17.7]} 23...
Bxd4+ {[%clk 0:03:31.9]} 24. Qxd4+ {[%clk 0:02:15.1]} 24... Qxd4+ {[%clk
0:03:28.9]} 25. cxd4 {[%clk 0:02:13.9]} 25... Rb8 {[%clk 0:03:22.4]} 26. b3
{[%clk 0:02:10.7]} 26... Kf6 {[%clk 0:03:20.9]} 27. g4 {[%clk 0:02:06.4]} 27...
Rb4 {[%clk 0:03:16.7]} 28. Rd1 {[%clk 0:02:01.2]} 28... d5 {[%clk 0:03:12.7]}
29. Kf2 {[%clk 0:01:59.7]} 29... e6 {[%clk 0:02:52.9]} 30. fxe6 {[%clk
0:01:56.5]} 30... fxe6 {[%clk 0:02:51.8]} 31. Ke3 {[%clk 0:01:54.5]} 31... e5
{[%clk 0:02:49.6]} 32. dxe5+ {[%clk 0:01:46.1]} 32... Kxe5 {[%clk 0:02:48.3]}
33. Kd3 {[%clk 0:01:39.3]} 33... Rd4+ {[%clk 0:02:45.3]} 34. Ke2 {[%clk
0:01:35.5]} 34... Re4+ {[%clk 0:02:41.4]} 35. Kd3 {[%clk 0:01:30.9]} 35... Rd4+
{[%clk 0:02:37]} 36. Ke2 {[%clk 0:01:27.4]} 36... Re4+ {[%clk 0:02:35.3]} 37.
Kd3 {[%clk 0:01:24.8]} 1/2-1/2

[Event "Live Chess"]
[Site "Chess.com"]
[Date "2024.06.02"]
[Round "-"]
[White "Rusty_Bridges"]
[Black "CheckThis4"]
[Result "0-1"]
[WhiteElo "1466"]
[BlackElo "2693"]
[TimeControl "300"]
[EndTime "0:37:52 PDT"]
[Termination "CheckThis4 won by resignation"]

1. e4 {[%clk 0:04:54.4]} 1... d5 {[%clk 0:04:57.3]} 2. exd5 {[%clk 0:04:52.7]}
2... c6 {[%clk 0:04:56.5]} 3. d4 {[%clk 0:04:49.1]} 3... cxd5 {[%clk 0:04:54.8]}
4. Nf3 {[%clk 0:04:47.7]} 4... Nf6 {[%clk 0:04:53.2]} 5. Bd3 {[%clk 0:04:46.6]}
5... Nc6 {[%clk 0:04:52.1]} 6. c3 {[%clk 0:04:44.9]} 6... Bg4 {[%clk 0:04:50.4]}
7. O-O {[%clk 0:04:41.7]} 7... e6 {[%clk 0:04:48.7]} 8. Bg5 {[%clk 0:04:40.3]}
8... h6 {[%clk 0:04:42.8]} 9. Bh4 {[%clk 0:04:38.2]} 9... Bd6 {[%clk 0:04:39.9]}
10. Nbd2 {[%clk 0:04:35.3]} 10... Qc7 {[%clk 0:04:37.3]} 11. h3 {[%clk
0:04:31.3]} 11... Bh5 {[%clk 0:04:33]} 12. Bxf6 {[%clk 0:04:29.2]} 12... gxf6
{[%clk 0:04:31.5]} 13. g4 {[%clk 0:04:24]} 13... Rg8 {[%clk 0:04:24.8]} 14. Kh1
{[%clk 0:04:14.5]} 14... Bg6 {[%clk 0:04:07.8]} 15. Bxg6 {[%clk 0:04:08.9]}
15... Rxg6 {[%clk 0:04:05.7]} 16. Rg1 {[%clk 0:04:07.1]} 16... O-O-O {[%clk
0:04:03.9]} 17. Rg2 {[%clk 0:03:57.2]} 17... Rh8 {[%clk 0:03:58.9]} 18. h4
{[%clk 0:03:47]} 18... Rhg8 {[%clk 0:03:52.8]} 19. Qg1 {[%clk 0:03:38.5]} 19...
f5 {[%clk 0:03:49.2]} 20. Nh2 {[%clk 0:03:34.9]} 20... Bxh2 {[%clk 0:03:38.9]}
21. Qxh2 {[%clk 0:03:27]} 21... Rxg4 {[%clk 0:03:35.2]} 22. Qxc7+ {[%clk
0:03:17.9]} 22... Kxc7 {[%clk 0:03:33.6]} 23. Rag1 {[%clk 0:03:13.2]} 23...
Rxh4+ {[%clk 0:03:31.3]} 24. Rh2 {[%clk 0:03:10.8]} 24... Rxh2+ {[%clk
0:03:22.7]} 25. Kxh2 {[%clk 0:03:09.1]} 25... Rxg1 {[%clk 0:03:20.9]} 26. Kxg1
{[%clk 0:03:09]} 26... Kd6 {[%clk 0:03:18.2]} 27. Nf3 {[%clk 0:03:05.3]} 27...
f6 {[%clk 0:03:14.2]} 28. Kg2 {[%clk 0:03:03.6]} 28... e5 {[%clk 0:03:13]} 29.
Kg3 {[%clk 0:02:56.7]} 29... Ke6 {[%clk 0:03:06.6]} 30. Kh4 {[%clk 0:02:53.6]}
30... f4 {[%clk 0:02:58.6]} 31. Kh5 {[%clk 0:02:51.5]} 31... e4 {[%clk
0:02:54.5]} 32. Nd2 {[%clk 0:02:47.2]} 32... e3 {[%clk 0:02:44.6]} 33. fxe3
{[%clk 0:02:45.1]} 33... fxe3 {[%clk 0:02:44.5]} 34. Nf3 {[%clk 0:02:43.7]}
34... Kf5 {[%clk 0:02:38.4]} 0-1